bitfinex-derivatives/quotes_SOLF0:USTF0_20241026
["timestamp","ask_amount","ask_price","bid_price","bid_amount"]
[1729945937717,8.21901201,168.51,168.45,4.26]
[1729945937917,8.21901201,168.49,168.45,4.26]
[1729945938217,8.21901201,168.49,168.46,4.04911051]
[1729945938417,8.21901201,168.49,168.45,4.26]
[1729945938722,8.21901201,168.49,168.46,4.04937671]
[1729945938918,8.21901201,168.49,168.45,4.26]
[1729945939109,8.21901201,168.49,168.46,4.04937671]
[1729945939313,8.21901201,168.49,168.48,2.9711]
[1729945940809,8.21901201,168.51,168.5,2.9707]
[1729945948222,5.5035,168.55,168.51,2.9704]
[1729945948413,8.21901201,168.52,168.51,2.9704]
[1729945948813,4.26,168.58,168.49,4.26]
[1729945949015,8.21901201,168.54,168.49,4.26]
[1729945949516,8.21901201,168.54,168.53,2.9702]
[1729945954424,2.4251,168.61,168.51,8.21901201]
[1729945954624,6.6851,168.61,168.52,8.21901201]
[1729945954825,8.21901201,168.58,168.53,4.26]
[1729945956230,8.21901201,168.58,168.56,2.9696]
[1729945958423,8.21901201,168.58,168.57,2.9695]
[1729945968835,2.9694,168.58,168.55,2.9697]
[1729945969029,8.21901201,168.56,168.52,4.26]
[1729945969828,8.21901201,168.56,168.55,2.9698]
[1729945970223,8.21901201,168.56,168.5,1.2655]
[1729945970429,8.21901201,168.51,168.5,2.9707]
[1729945983743,2.9701,168.54,168.5,2.9707]
[1729945983948,8.21901201,168.51,168.5,2.9707]
[1729945985137,14.98566525,168.61,168.48,12.47901201]
[1729945985346,8.21901201,168.56,168.5,8.21901201]
[1729945985844,8.21901201,168.54,168.5,8.21901201]
[1729945987145,8.21901201,168.54,168.49,1.2376]
[1729945987344,8.21901201,168.54,168.53,2.9701]
[1729945997754,8.21901201,168.54,168.46,8.21901201]
[1729945998050,8.21901201,168.51,168.47,4.26]
[1729945998650,8.21901201,168.51,168.5,2.9707]
[1729946007356,8.21901201,168.51,168.49,2.9708]
[1729946009663,8.21901201,168.51,168.47,4.26]
[1729946009664,8.21901201,168.51,168.5,2.9707]
[1729946012555,2.4683,168.55,168.49,8.21901201]
[1729946012755,8.21901201,168.56,168.51,8.21901201]
[1729946012958,2.4176,168.6,168.52,8.21901201]
[1729946013268,2.4176,168.6,168.56,2.9695]
[1729946013269,8.21901201,168.58,168.56,2.9695]
[1729946016860,8.21901201,168.58,168.52,9.52921201]
[1729946017067,8.21901201,168.58,168.57,2.9695]
[1729946025376,8.21901201,168.59,168.57,2.9695]
[1729946026272,8.21901201,168.59,168.58,2.9693]
[1729946026471,8.21901201,168.61,168.55,12.45901201]
[1729946027079,8.21901201,168.61,168.58,2.9692]
[1729946027267,8.21901201,168.61,168.55,12.45901201]
[1729946027873,8.21901201,168.61,168.58,2.9692]
[1729946032683,11.18781201,168.61,168.58,2.9692]
[1729946035282,8.21901201,168.62,168.6,2.969]
[1729946036278,8.21901201,168.62,168.57,8.21901201]
[1729946037375,8.21901201,168.62,168.6,2.9689]
[1729946039384,8.21901201,168.61,168.55,4.24]
[1729946039590,11.18801201,168.6,168.55,12.45901201]
[1729946040088,8.21901201,168.6,168.55,12.45901201]
[1729946041887,8.21901201,168.6,168.57,2.9694]
[1729946042484,2.56,168.64,168.55,12.45901201]
[1729946042485,2.56,168.64,168.55,4.24]
[1729946042692,9.46681201,168.64,168.59,8.21901201]
[1729946042888,12.43521201,168.64,168.6,2.9689]
[1729946043883,1.212,168.69,168.6,8.21901201]
[1729946044083,6.7162,168.69,168.63,2.9683]
[1729946044282,8.21901201,168.68,168.62,8.21901201]
[1729946045184,6.7162,168.69,168.62,8.21901201]
[1729946045385,8.21901201,168.68,168.62,8.21901201]
[1729946045792,6.7162,168.69,168.62,8.21901201]
[1729946045983,1.2642,168.69,168.64,8.21901201]
[1729946046690,4.2317,168.69,168.66,2.9678]
[1729946048981,1.2642,168.69,168.63,4.24]
[1729946049185,9.48321201,168.69,168.64,2.9681]
[1729946049998,2.9679,168.67,168.64,2.9681]
[1729946051486,9.48321201,168.69,168.63,4.24]
[1729946053191,2.9678,168.67,168.64,2.9681]
[1729946055894,11.18681201,168.67,168.64,2.9681]
[1729946056791,9.48321201,168.69,168.63,8.21901201]
[1729946056995,8.21901201,168.71,168.66,8.21901201]
[1729946057294,2.9674,168.69,168.67,2.9677]
[1729946061002,8.21901201,168.71,168.67,2.9677]
[1729946061300,2.9673,168.7,168.66,8.21901201]
[1729946061503,8.21901201,168.71,168.66,8.21901201]
[1729946061905,11.18611201,168.71,168.68,2.9675]
[1729946065700,2.9672,168.7,168.68,2.9675]
[1729946068409,2.9672,168.7,168.67,2.9676]
[1729946072700,13.05768039,168.79,168.67,8.21901201]
[1729946072904,2.9665,168.75,168.72,2.9668]
[1729946073105,4.24,168.78,168.69,12.45901201]
[1729946073106,8.21901201,168.76,168.69,12.45901201]
[1729946073612,8.21901201,168.76,168.7,8.21901201]
[1729946073814,2.9665,168.74,168.71,2.9669]
[1729946075105,8.21901201,168.74,168.66,1.236]
[1729946075307,2.967,168.72,168.68,8.21901201]
[1729946075816,2.967,168.72,168.69,2.9672]
[1729946077415,2.9671,168.71,168.68,2.9675]
[1729946077614,8.21901201,168.73,168.67,12.45901201]
[1729946077917,11.18581201,168.73,168.69,2.9673]
[1729946078711,8.21901201,168.71,168.66,9.45501201]
[1729946078917,11.18631201,168.7,168.67,2.9677]
[1729946079721,8.21901201,168.7,168.66,2.9678]
[1729946079914,8.21901201,168.7,168.65,4.24]
[1729946080310,11.18621201,168.71,168.66,8.21901201]
[1729946081210,2.9674,168.69,168.65,4.24]
[1729946081411,2.9674,168.69,168.66,2.9678]
[1729946082321,2.9673,168.7,168.67,2.9677]
[1729946084917,11.18631201,168.7,168.67,2.9677]
[1729946096317,8.21901201,168.7,168.65,8.21901201]
[1729946097632,8.21901201,168.67,168.62,1.3043]
[1729946098123,2.9681,168.65,168.62,2.9685]
[1729946098715,11.18731201,168.64,168.61,2.9687]
[1729946098922,8.21901201,168.62,168.58,1.2747]
[1729946099423,8.21901201,168.62,168.59,2.969]
[1729946102225,8.21901201,168.62,168.58,1.2747]
[1729946102523,8.21901201,168.62,168.6,2.9689]
[1729946102725,11.18751201,168.63,168.6,2.9689]
[1729946102922,2.9683,168.64,168.6,2.9689]
[1729946103924,2.9675,168.69,168.62,2.9685]
[1729946104125,1.2029,168.72,168.62,2.9685]
[1729946104126,8.21901201,168.66,168.62,2.9685]
[1729946104629,8.21901201,168.64,168.61,2.9687]
[1729946104820,8.21901201,168.64,168.59,8.21901201]
[1729946106434,8.21901201,168.64,168.62,2.9686]
[1729946107035,2.9679,168.66,168.63,2.9684]
[1729946107234,8.21901201,168.65,168.63,2.9684]
[1729946108243,11.18691201,168.66,168.63,2.9684]
[1729946111336,8.21901201,168.66,168.6,8.21901201]
[1729946111532,8.21901201,168.61,168.5,5.9413]
[1729946111741,1.2029,168.72,168.54,8.21901201]
[1729946111742,8.21901201,168.59,168.54,8.21901201]
[1729946112138,8.21901201,168.59,168.57,2.9694]
[1729946112539,8.21901201,168.59,168.54,8.21901201]
[1729946112939,8.21901201,168.59,168.51,7.9801]
[1729946113139,8.21901201,168.59,168.53,8.21901201]
[1729946113341,11.18831201,168.59,168.55,2.9698]
[1729946113536,8.21901201,168.58,168.52,4.24]
[1729946113745,4.24,168.63,168.55,8.21901201]
[1729946114042,8.21901201,168.6,168.55,8.21901201]
[1729946115247,8.21901201,168.6,168.58,2.9693]
[1729946117447,8.21901201,168.6,168.59,2.9691]
[1729946118647,8.21901201,168.61,168.59,2.9691]
[1729946119649,8.21901201,168.61,168.56,8.21901201]
[1729946119853,8.21901201,168.63,168.61,2.9687]
[1729946123851,8.21901201,168.63,168.59,8.21901201]
[1729946124054,11.18751201,168.63,168.6,2.9689]
[1729946124255,8.21901201,168.62,168.57,1.2151]
[1729946124450,8.21901201,168.6,168.57,1.2151]
[1729946124645,8.21901201,168.6,168.58,2.9692]
[1729946127347,8.21901201,168.6,168.59,2.9691]
[1729946134759,11.18771201,168.62,168.59,2.9691]
[1729946136453,2.9683,168.64,168.61,2.9687]
[1729946136654,1.3039,168.65,168.58,8.21901201]
[1729946136856,12.94707096,168.7,168.57,1.2151]
[1729946136857,5.4515,168.7,168.64,8.21901201]
[1729946137060,8.21901201,168.72,168.66,8.21901201]
[1729946137356,12.45901201,168.72,168.66,8.21901201]
[1729946137566,2.9671,168.71,168.68,2.9675]
[1729946143963,2.9671,168.71,168.67,2.9677]
[1729946144560,2.9676,168.68,168.65,2.968]
[1729946144764,8.21901201,168.69,168.64,1.2215]
[1729946145862,11.18651201,168.69,168.66,2.9679]
[1729946146059,8.21901201,168.67,168.62,8.21901201]
[1729946146263,8.21901201,168.66,168.61,12.45901201]
[1729946146467,8.21901201,168.66,168.64,2.9682]
[1729946147465,8.21901201,168.66,168.62,2.9684]
[1729946147661,8.21901201,168.65,168.59,13.66091201]
[1729946148374,2.9683,168.64,168.61,2.9687]
[1729946148673,8.21901201,168.62,168.57,12.45901201]
[1729946148864,8.21901201,168.62,168.57,8.21901201]
[1729946149259,11.18761201,168.62,168.59,2.969]
[1729946149471,4.24,168.69,168.6,8.21901201]
[1729946149669,8.21901201,168.68,168.62,8.21901201]
[1729946150062,8.21901201,168.66,168.61,8.21901201]
[1729946150775,8.21901201,168.66,168.63,2.9683]
[1729946154972,4.24,168.69,168.62,8.21901201]
[1729946155179,8.21901201,168.68,168.62,8.21901201]
[1729946155768,11.18661201,168.68,168.65,2.968]
[1729946157079,8.21901201,168.67,168.63,2.9684]
[1729946158277,8.21901201,168.67,168.64,2.9682]
[1729946159177,11.18691201,168.67,168.64,2.9682]
[1729946161377,8.21901201,168.7,168.65,2.9679]
[1729946162169,2.9676,168.68,168.65,2.9679]
[1729946163080,11.18661201,168.68,168.65,2.9679]
[1729946171986,8.21901201,168.66,168.61,1.2905]
[1729946172879,2.9681,168.65,168.62,2.9685]
[1729946173085,8.21901201,168.64,168.59,8.21901201]
[1729946173292,8.21901201,168.64,168.58,12.45901201]
[1729946173494,11.18741201,168.64,168.61,2.9687]
[1729946173689,8.21901201,168.62,168.61,2.9687]
[1729946179799,1.2544,168.66,168.62,2.9684]
[1729946179800,8.21901201,168.65,168.62,2.9684]
[1729946180593,11.18711201,168.65,168.62,2.9684]
[1729946183006,8.21901201,168.64,168.62,2.9684]
[1729946192618,2.9681,168.65,168.62,2.9684]
[1729946192811,1.2088,168.7,168.63,8.21901201]
[1729946192812,4.24,168.7,168.63,8.21901201]
[1729946193012,8.21901201,168.69,168.63,8.21901201]
[1729946193816,2.9676,168.68,168.65,2.9681]
[1729946200820,8.21901201,168.67,168.65,2.9681]
[1729946201015,11.18701201,168.66,168.62,2.9685]
[1729946202621,11.18701201,168.66,168.63,2.9684]
[1729946207017,8.21901201,168.66,168.6,4.24]
[1729946207226,8.21901201,168.66,168.6,12.45901201]
[1729946207622,11.18701201,168.66,168.63,2.9683]
[1729946208127,2.968,168.66,168.63,2.9683]
[1729946208426,2.968,168.66,168.64,2.9682]
[1729946210224,12.45901201,168.67,168.64,2.9682]
[1729946210423,15.42681201,168.67,168.64,2.9682]
[1729946211929,11.18681201,168.67,168.64,2.9682]
[1729946212526,8.21901201,168.67,168.64,2.9682]
[1729946216331,8.21901201,168.67,168.65,2.9681]
[1729946220434,8.21901201,168.7,168.68,2.9674]
[1729946223141,12.84594343,168.72,168.65,8.21901201]
[1729946223337,8.21901201,168.71,168.69,2.9672]
[1729946223840,8.21901201,168.72,168.69,2.9672]
[1729946224740,11.18591201,168.72,168.69,2.9672]
[1729946229142,175.34158472,168.73,168.67,8.21901201]
[1729946229143,183.56059673,168.73,168.67,8.21901201]
[1729946229338,183.56059673,168.73,168.72,2.9668]
[1729946230043,175.34158472,168.73,168.72,2.9668]
[1729946230347,8.21901201,168.75,168.74,2.9665]
[1729946230941,5.4651,168.77,168.74,2.9665]
[1729946231138,8.21901201,168.76,168.74,2.9665]
[1729946233046,1.2251,168.77,168.76,2.9661]
[1729946233248,9.44411201,168.77,168.76,2.9661]
[1729946236044,9.44411201,168.77,168.75,2.9663]
[1729946237647,9.44411201,168.77,168.68,4.24]
[1729946237648,183.50478569,168.79,168.73,8.21901201]
[1729946237950,175.28577368,168.79,168.75,8.21901201]
[1729946240154,4.24,168.84,168.75,8.21901201]
[1729946240452,8.21901201,168.82,168.76,8.21901201]
[1729946240651,8.21901201,168.82,168.79,2.9655]
[1729946242256,8.21901201,168.82,168.8,2.9654]
[1729946242460,8.21901201,168.82,168.76,12.45901201]
[1729946243658,8.21901201,168.8,168.73,1.1935]
[1729946243966,8.21901201,168.77,168.73,1.1935]
[1729946244559,8.21901201,168.77,168.74,2.9665]
[1729946244758,8.21901201,168.77,168.73,1.1935]
[1729946245460,8.21901201,168.77,168.75,2.9662]
[1729946245855,8.21901201,168.77,168.73,1.1935]
[1729946247558,8.21901201,168.77,168.76,2.9661]
[1729946248460,8.21901201,168.77,168.59,2.98994187]
[1729946248763,11.18531201,168.76,168.73,2.9666]
[1729946249056,8.21901201,168.76,168.7,8.21901201]
[1729946252354,8.21901201,168.76,168.74,2.9665]
[1729946254357,11.18511201,168.77,168.74,2.9665]
[1729946257465,2.5253,168.79,168.77,2.9659]
[1729946257668,1.2088,168.79,168.77,2.9659]
[1729946257857,8.21901201,168.8,168.77,2.9659]
[1729946258456,8.21901201,168.8,168.75,8.21901201]
[1729946258665,8.21901201,168.8,168.78,2.9658]
[1729946260062,11.18411201,168.82,168.78,2.9658]
[1729946260267,2.9651,168.82,168.78,2.9658]
[1729946260663,11.18411201,168.82,168.78,2.9658]
[1729946267266,8.21901201,168.81,168.78,2.9658]
[1729946270478,11.18431201,168.81,168.78,2.9658]
[1729946273684,11.18431201,168.81,168.76,8.21901201]
[1729946273876,8.21901201,168.8,168.77,2.9658]
[1729946274182,8.21901201,168.8,168.75,4.24]
[1729946275275,8.21901201,168.8,168.78,2.9658]
[1729946281182,8.21901201,168.8,168.74,12.43901201]
[1729946281183,8.21901201,168.8,168.77,2.9659]
[1729946283086,8.21901201,168.8,168.78,2.9658]
[1729946283280,11.18431201,168.81,168.78,2.9658]
[1729946287084,2.9651,168.82,168.79,2.9656]
[1729946288680,8.21901201,168.84,168.79,2.9655]
[1729946288885,8.21901201,168.84,168.78,8.21901201]
[1729946289380,8.21901201,168.84,168.81,2.9652]
[1729946289686,175.23909455,168.85,168.81,8.21901201]
[1729946289891,175.23909455,168.85,168.82,2.965]
[1729946290287,175.23909455,168.85,168.81,8.21901201]
[1729946290483,175.23909455,168.85,168.83,2.9648]
[1729946293493,8.21901201,168.84,168.79,1.3128]
[1729946293793,8.21901201,168.84,168.76,12.43901201]
[1729946293794,8.21901201,168.82,168.76,12.43901201]
[1729946294097,8.21901201,168.82,168.78,2.9657]
[1729946294395,8.21901201,168.82,168.76,12.43901201]
[1729946294596,8.21901201,168.82,168.79,2.9656]
[1729946294988,8.21901201,168.82,168.76,12.43901201]
[1729946295189,8.21901201,168.82,168.77,2.9659]
[1729946295586,11.18411201,168.82,168.77,2.9659]
[1729946295893,8.21901201,168.82,168.76,4.22]
[1729946296095,2.9655,168.8,168.76,4.22]
[1729946296289,8.21901201,168.82,168.76,4.22]
[1729946296493,8.21901201,168.82,168.76,7.1861]
[1729946297184,8.21901201,168.79,168.73,1.2784]
[1729946297387,8.21901201,168.79,168.73,13.71741201]
[1729946297987,8.21901201,168.79,168.74,2.9665]
[1729946297988,2.9658,168.78,168.74,2.9665]
[1729946298685,8.21901201,168.79,168.74,2.9665]
[1729946298889,11.18471201,168.79,168.74,2.9665]
[1729946302293,2.9659,168.78,168.73,13.71741201]
[1729946303306,2.9659,168.78,168.74,2.9664]
[1729946307995,2.9659,168.78,168.73,9.49741201]
[1729946308198,2.9654,168.81,168.77,8.21901201]
[1729946309296,4.22,168.83,168.78,8.21901201]
[1729946309495,2.965,168.83,168.79,8.21901201]
[1729946310398,2.965,168.83,168.8,2.9654]
[1729946312306,8.21901201,168.83,168.78,2.9657]
[1729946313307,2.9653,168.81,168.78,2.9657]
[1729946314211,2.965,168.83,168.79,2.9656]
[1729946315704,2.9651,168.82,168.79,2.9656]
[1729946316508,8.21901201,168.84,168.79,2.9656]
[1729946316710,178.20369455,168.85,168.81,8.21901201]
[1729946317111,175.23909455,168.85,168.81,8.21901201]
[1729946317317,175.23909455,168.85,168.82,2.965]
[1729946321022,178.20369455,168.85,168.82,2.965]
[1729946321729,178.20369455,168.85,168.81,2.9653]
[1729946323729,2.9647,168.84,168.81,2.9653]
[1729946325621,178.20369455,168.85,168.8,8.21901201]
[1729946325826,178.20369455,168.85,168.82,2.9651]
[1729946326429,175.23909455,168.85,168.8,8.21901201]
[1729946326729,175.23909455,168.85,168.8,12.43901201]
[1729946327232,175.23909455,168.85,168.82,8.21901201]
[1729946327419,175.23909455,168.85,168.83,2.9649]
[1729946329434,175.23909455,168.85,168.82,2.965]
[1729946331431,175.23909455,168.85,168.81,8.21901201]
[1729946331633,2.9648,168.84,168.81,11.18421201]
[1729946333341,2.9648,168.84,168.81,2.9652]
[1729946337437,2.9648,168.84,168.8,12.43901201]
[1729946338936,2.9648,168.84,168.81,2.9652]
[1729946358152,1.1934,168.89,168.83,8.21901201]
[1729946358360,1.1934,168.89,168.85,8.21901201]
[1729946358748,8.21901201,168.86,168.8,4.22]
[1729946359047,8.21901201,168.85,168.8,12.43901201]
[1729946359240,8.21901201,168.85,168.82,2.9651]
[1729946359241,11.18371201,168.85,168.82,2.9651]
[1729946360257,8.21901201,168.85,168.81,2.9652]
[1729946361154,2.9649,168.84,168.81,2.9652]
[1729946364052,4.22,168.87,168.79,13.67431201]
[1729946364053,8.21901201,168.86,168.8,8.21901201]
[1729946364354,8.21901201,168.86,168.79,5.4553]
[1729946364355,4.22,168.87,168.82,8.21901201]
[1729946364744,12.43901201,168.87,168.82,8.21901201]
[1729946365053,2.9644,168.86,168.83,2.9648]
[1729946371557,2.9642,168.87,168.84,2.9647]
[1729946372462,17.8,169.11,168.86,8.21901201]
[1729946372669,9.51531201,169.01,168.87,4.22]
[1729946372965,9.51531201,169.01,168.96,2.9626]
[1729946373263,1.2963,169.01,168.95,12.43901201]
[1729946373458,9.51531201,169.01,168.95,12.43901201]
[1729946374064,9.51531201,169.01,168.96,1.48203954]
[1729946374257,9.51531201,169.01,168.97,2.9623]
[1729946374462,1.2963,169.01,168.97,11.18131201]
[1729946375070,1.2963,169.01,168.98,1.48204213]
[1729946375267,1.2963,169.01,168.97,11.18131201]
[1729946375460,1.2963,169.01,168.98,1.48204194]
[1729946375660,1.2963,169.01,168.97,11.18131201]
[1729946376369,1.2963,169.01,168.91,0.57275752]
[1729946376561,8.21901201,168.99,168.92,15.0364792]
[1729946376869,8.21901201,168.99,168.93,1.48205808]
[1729946377067,8.21901201,168.99,168.92,12.43901201]
[1729946377271,8.21901201,168.97,168.91,8.21901201]
[1729946377475,8.21901201,168.97,168.92,5.70225527]
[1729946377772,8.21901201,168.97,168.91,12.43901201]
[1729946378273,1.2963,169.01,168.92,1.48231]
[1729946378468,8.21901201,168.97,168.91,12.43901201]
[1729946378662,8.21901201,168.97,168.93,2.963]
[1729946382065,8.21901201,168.96,168.92,2.9633]
[1729946382670,8.21901201,168.96,168.93,2.9631]
[1729946386867,2.9629,168.95,168.91,8.21901201]
[1729946387067,8.21901201,168.96,168.91,8.21901201]
[1729946387664,11.18171201,168.96,168.92,2.9632]
[1729946390377,8.21901201,168.95,168.92,2.9632]
[1729946391774,11.18191201,168.95,168.91,2.9634]
[1729946397784,2.9629,168.95,168.91,11.18241201]
[1729946405095,2.9625,168.97,168.93,11.18201201]
[1729946405299,2.9625,168.97,168.93,8.21901201]
[1729946406288,2.9625,168.97,168.94,2.963]
[1729946407887,8.21901201,168.98,168.94,2.963]
[1729946408095,11.18131201,168.98,168.94,2.963]
[1729946409291,11.18131201,168.98,168.95,2.9628]
[1729946411885,8.21901201,168.97,168.93,8.21901201]
[1729946412091,8.21901201,168.94,168.9,12.43901201]
[1729946412989,8.21901201,168.96,168.91,8.21901201]
[1729946413292,2.9626,168.97,168.93,2.9631]
[1729946413498,8.21901201,168.96,168.93,2.9631]
[1729946423597,8.21901201,168.96,168.9,4.22]
[1729946423598,2.9622,168.99,168.95,2.9626]
[1729946423799,8.21901201,168.98,168.95,2.9626]
[1729946423998,8.21901201,168.98,168.92,8.21901201]
[1729946424591,8.21901201,168.98,168.94,8.21901201]
[1729946425897,8.21901201,168.98,168.96,2.9625]
[1729946426100,11.18101201,169.0,168.96,2.9625]
[1729946428399,8.21901201,168.99,168.96,2.9625]
[1729946428600,8.21901201,168.98,168.95,2.9627]
[1729946429503,11.18121201,168.99,168.96,2.9626]
[1729946436612,8.21901201,168.97,168.91,4.22]
[1729946436911,8.21901201,168.97,168.91,12.43901201]
[1729946437210,11.18161201,168.97,168.93,2.9631]
[1729946438607,11.18161201,168.97,168.92,2.9632]
[1729946438808,11.18161201,168.97,168.91,12.43901201]
[1729946439109,11.18161201,168.97,168.92,1.48202695]
[1729946439311,11.18161201,168.97,168.91,12.43901201]
[1729946439502,11.18161201,168.97,168.92,1.48202695]
[1729946439699,11.18161201,168.97,168.93,2.963]
[1729946440004,2.9623,168.98,168.92,8.21901201]
[1729946440209,2.9623,168.98,168.94,8.21901201]
[1729946440811,2.9623,168.98,168.95,2.9628]
[1729946441110,2.4838,169.02,168.91,4.22]
[1729946441111,57.58,169.07,168.97,8.21901201]
[1729946441301,8.21901201,169.02,168.97,8.21901201]
[1729946442310,8.21901201,169.02,168.99,2.962]
[1729946444907,2.9615,169.03,168.99,2.962]
[1729946445209,11.18051201,169.03,168.99,2.962]
[1729946446208,11.18051201,169.03,168.97,8.21901201]
[1729946446713,8.21901201,169.03,168.98,8.21901201]
[1729946446909,163.47693521,169.05,169.02,8.21901201]
[1729946447308,1.2419,169.06,169.04,2.9612]
[1729946447609,4.1989,169.08,168.99,4.22]
[1729946447610,9.45721201,169.08,169.03,8.21901201]
[1729946447916,12.41771201,169.08,169.04,2.9611]
[1729946448308,1.2886,169.11,169.04,8.21901201]
[1729946448504,1.2886,169.11,169.06,2.9607]
[1729946448505,8.21901201,169.1,169.06,2.9607]
[1729946449618,8.21901201,169.07,169.04,2.9612]
[1729946450612,8.21901201,169.07,169.05,2.961]
[1729946451703,8.21901201,169.07,169.02,8.21901201]
[1729946451905,8.21901201,169.08,169.06,2.9609]
[1729946452117,8.21901201,169.08,169.01,4.22]
[1729946452315,8.21901201,169.08,169.03,8.21901201]
[1729946452619,8.21901201,169.08,169.05,2.961]
[1729946457416,8.21901201,169.08,169.06,2.9609]
[1729946460828,2.9605,169.09,169.06,2.9609]
[1729946460829,11.17951201,169.09,169.06,2.9609]
[1729946461731,11.17951201,169.09,169.05,2.961]
[1729946462518,11.17951201,169.09,169.06,2.9609]
[1729946467333,8.4687,169.11,169.07,2.9607]
[1729946467534,16.68771201,169.11,169.07,2.9607]
[1729946469238,1.2886,169.11,169.08,2.9604]
[1729946469438,1.2886,169.11,169.07,8.21901201]
[1729946470132,1.2886,169.11,169.08,2.9605]
[1729946470334,1.2886,169.11,169.07,8.21901201]
[1729946471337,1.2886,169.11,169.09,2.9602]
[1729946472130,1.2886,169.11,169.07,8.21901201]
[1729946472331,12.43901201,169.16,169.1,8.21901201]
[1729946472645,12.43901201,169.16,169.11,8.21901201]
[1729946472844,8.21901201,169.16,169.11,8.21901201]
[1729946473035,11.17821201,169.16,169.12,2.9597]
[1729946473535,2.90176061,169.22,169.12,8.21901201]
[1729946473736,2.90176061,169.22,169.09,4.22]
[1729946473737,8.21901201,169.19,169.14,8.21901201]
[1729946473943,3.8361,169.24,169.15,8.21901201]
[1729946473944,8.0561,169.24,169.15,8.21901201]
[1729946474237,3.8361,169.24,169.15,8.21901201]
[1729946474541,3.8361,169.24,169.13,4.22]
[1729946474542,8.0561,169.24,169.17,8.21901201]
[1729946474745,11.17691201,169.23,169.18,2.9586]
[1729946475141,2.9579,169.23,169.17,8.21901201]
[1729946475442,3.8361,169.24,169.16,8.21901201]
[1729946475646,8.21901201,169.19,169.14,8.21901201]
[1729946476146,8.21901201,169.19,169.16,2.959]
[1729946476640,8.21901201,169.17,169.1,8.21901201]
[1729946476838,8.21901201,169.14,169.0,1.2416]
[1729946477033,1.2026,169.16,169.07,4.22]
[1729946477238,1.2026,169.16,169.11,8.21901201]
[1729946477434,1.2026,169.16,169.11,12.43901201]
[1729946477642,4.22,169.2,169.11,12.43901201]
[1729946477643,4.22,169.2,169.14,8.21901201]
[1729946477843,8.21901201,169.19,169.14,8.21901201]
[1729946478042,4.22,169.2,169.16,8.21901201]
[1729946478243,7.1785,169.2,169.16,8.21901201]
[1729946478447,2.9585,169.2,169.16,8.21901201]
[1729946479547,11.17751201,169.2,169.16,11.17811201]
[1729946479748,2.9585,169.2,169.16,11.17811201]
[1729946480342,2.9582,169.22,169.17,8.21901201]
[1729946480646,5.4426,169.23,169.19,8.21901201]
[1729946480851,1.2026,169.23,169.19,8.21901201]
[1729946481051,1.2026,169.23,169.19,11.17761201]
[1729946481345,171.63121126,169.27,169.21,8.21901201]
[1729946482245,166.36939925,169.27,169.22,2.958]
[1729946483146,163.41219925,169.27,169.19,12.78176726]
[1729946483345,2.9574,169.26,169.21,2.9582]
[1729946486148,2.9576,169.25,169.21,2.9582]
[1729946487444,2.9574,169.26,169.22,2.9581]
[1729946487640,20.88876726,169.29,169.21,17.02176726]
[1729946488755,2.9573,169.27,169.23,2.9578]
[1729946489453,20.88876726,169.29,169.21,17.02176726]
[1729946489654,2.9574,169.26,169.22,2.958]
[1729946491554,2.9574,169.26,169.23,2.9579]
[1729946492460,2.9574,169.26,169.22,2.958]
[1729946493761,3.867,169.29,169.23,2.9578]
[1729946494057,3.867,169.29,169.21,17.02176726]
[1729946494258,3.867,169.29,169.23,2.9578]
[1729946494259,2.9573,169.27,169.23,2.9578]
[1729946494460,3.867,169.29,169.21,17.02176726]
[1729946495052,3.867,169.29,169.25,2.9575]
[1729946495053,2.5614,169.29,169.25,2.9575]
[1729946495253,1.2616,169.29,169.25,2.9575]
[1729946495455,1.2616,169.29,169.23,12.78176726]
[1729946495649,4.24,169.31,169.27,2.9571]
[1729946495650,2.9566,169.31,169.27,2.9571]
[1729946496059,1.2091,169.33,169.26,12.78176726]
[1729946496363,2.9566,169.31,169.27,2.9571]
[1729946496956,13.99086726,169.33,169.25,4.24]
[1729946497161,13.99086726,169.33,169.21,12.78176726]
[1729946497162,12.78176726,169.31,169.21,12.78176726]
[1729946497363,1.2619,169.3,169.22,4.24]
[1729946497557,2.9571,169.28,169.24,2.9577]
[1729946497762,1.2619,169.3,169.23,12.78176726]
[1729946498656,1.2619,169.3,169.23,17.02176726]